[Event "*** Titled Tuesday Blitz"]
[Site "Chess.com"]
[Date "2020.04.07"]
[Round "7"]
[White "ethylalcohol"]
[Black "Mikromurks"]
[Result "0-1"]
[WhiteElo "2143"]
[BlackElo "2328"]
[TimeControl "180+1"]
[EndTime "14:18:42 PDT"]
[Termination "Mikromurks won on time"]

1. d4 {[%clk 0:03:00.7]} 1... Nf6 {[%clk 0:02:59.2]} 2. Nf3 {[%clk 0:03:00.2]}
2... d6 {[%clk 0:02:55.8]} 3. Nc3 {[%clk 0:02:58.9]} 3... Nbd7 {[%clk
0:02:55.6]} 4. e4 {[%clk 0:02:59.2]} 4... e5 {[%clk 0:02:55.9]} 5. dxe5 {[%clk
0:02:52.2]} 5... dxe5 {[%clk 0:02:55.6]} 6. Bc4 {[%clk 0:02:51.9]} 6... Be7
{[%clk 0:02:55.8]} 7. O-O {[%clk 0:02:51.3]} 7... O-O {[%clk 0:02:55.3]} 8. Qe2
{[%clk 0:02:47.4]} 8... c6 {[%clk 0:02:55.1]} 9. Bg5 {[%clk 0:02:44.8]} 9... Qc7
{[%clk 0:02:52.2]} 10. a4 {[%clk 0:02:44.7]} 10... Re8 {[%clk 0:02:47]} 11. Nh4
{[%clk 0:02:31.2]} 11... h6 {[%clk 0:02:23.5]} 12. Be3 {[%clk 0:02:15.1]} 12...
Nf8 {[%clk 0:02:14.9]} 13. Qf3 {[%clk 0:02:05.3]} 13... Be6 {[%clk 0:02:03.5]}
14. Bd3 {[%clk 0:01:50.5]} 14... N8h7 {[%clk 0:01:31.6]} 15. Nf5 {[%clk
0:01:37.9]} 15... Bxf5 {[%clk 0:01:30.5]} 16. exf5 {[%clk 0:01:31]} 16... Rad8
{[%clk 0:01:16.5]} 17. Bc4 {[%clk 0:01:20]} 17... Bb4 {[%clk 0:01:09.7]} 18. Qg3
{[%clk 0:00:59.1]} 18... Kh8 {[%clk 0:00:43.9]} 19. Qh4 {[%clk 0:00:49.8]} 19...
Bxc3 {[%clk 0:00:39.2]} 20. bxc3 {[%clk 0:00:50]} 20... Qd7 {[%clk 0:00:34.3]}
21. Qh3 {[%clk 0:00:35.5]} 21... Ne4 {[%clk 0:00:33.2]} 22. Bd3 {[%clk
0:00:23.9]} 22... Neg5 {[%clk 0:00:31.4]} 23. Qh5 {[%clk 0:00:19.5]} 23... e4
{[%clk 0:00:31.4]} 24. Bc4 {[%clk 0:00:19.2]} 24... Qxf5 {[%clk 0:00:25.5]} 25.
Qe2 {[%clk 0:00:17]} 25... Qg6 {[%clk 0:00:23.7]} 26. Kh1 {[%clk 0:00:14.4]}
26... f5 {[%clk 0:00:22.8]} 27. Bxa7 {[%clk 0:00:14]} 27... f4 {[%clk
0:00:21.6]} 28. Rad1 {[%clk 0:00:07.8]} 28... f3 {[%clk 0:00:19.8]} 29. Qe3
{[%clk 0:00:01.2]} 29... Ne6 {[%clk 0:00:15.5]} 0-1

[Event "*** Titled Tuesday Blitz"]
[Site "Chess.com"]
[Date "2020.04.07"]
[Round "7"]
[White "Ovsiannikov_Maxim"]
[Black "MathiasWomacka"]
[Result "0-1"]
[WhiteElo "2224"]
[BlackElo "2419"]
[TimeControl "180+1"]
[EndTime "14:18:43 PDT"]
[Termination "MathiasWomacka won by resignation"]

1. d4 {[%clk 0:03:00.9]} 1... Nf6 {[%clk 0:02:59.5]} 2. Bg5 {[%clk 0:02:59.2]}
2... Ne4 {[%clk 0:02:58.5]} 3. Bh4 {[%clk 0:02:59]} 3... c5 {[%clk 0:02:56.4]}
4. f3 {[%clk 0:02:58.7]} 4... g5 {[%clk 0:02:56.4]} 5. fxe4 {[%clk 0:02:58.7]}
5... gxh4 {[%clk 0:02:56.8]} 6. e3 {[%clk 0:02:59.3]} 6... Qb6 {[%clk
0:02:50.4]} 7. Nc3 {[%clk 0:02:59.1]} 7... Bh6 {[%clk 0:02:31]} 8. Kf2 {[%clk
0:02:58.6]} 8... d6 {[%clk 0:02:14.4]} 9. Bc4 {[%clk 0:02:52.4]} 9... O-O {[%clk
0:02:09.8]} 10. Nf3 {[%clk 0:02:48.7]} 10... Nc6 {[%clk 0:02:01.5]} 11. Nd5
{[%clk 0:02:41.4]} 11... Qd8 {[%clk 0:01:59]} 12. Nxh4 {[%clk 0:02:37.2]} 12...
e6 {[%clk 0:01:56.4]} 13. Qh5 {[%clk 0:02:36.2]} 13... exd5 {[%clk 0:01:50.2]}
14. exd5 {[%clk 0:02:36.1]} 14... Qg5 {[%clk 0:01:45.6]} 15. Qxg5+ {[%clk
0:02:26.5]} 15... Bxg5 {[%clk 0:01:46.5]} 16. Nf3 {[%clk 0:02:26.2]} 16... Na5
{[%clk 0:01:34.1]} 17. Bd3 {[%clk 0:02:13.4]} 17... Bh6 {[%clk 0:01:27.5]} 18.
dxc5 {[%clk 0:02:13.6]} 18... dxc5 {[%clk 0:01:26.8]} 19. c3 {[%clk 0:01:59.1]}
19... b6 {[%clk 0:01:22.9]} 20. Ne5 {[%clk 0:01:48.2]} 20... Re8 {[%clk
0:01:15]} 21. Nf3 {[%clk 0:01:23.1]} 21... Bxe3+ {[%clk 0:01:11.1]} 22. Kg3
{[%clk 0:01:23.2]} 22... Bd7 {[%clk 0:01:08.9]} 23. Ba6 {[%clk 0:01:17]} 23...
Rab8 {[%clk 0:01:04.5]} 24. Rhe1 {[%clk 0:01:14.5]} 24... Nb7 {[%clk 0:01:01.7]}
25. Re2 {[%clk 0:01:05.5]} 25... Nd6 {[%clk 0:01:01.1]} 26. Rae1 {[%clk
0:01:03.6]} 26... Nf5+ {[%clk 0:01:00.3]} 27. Kg4 {[%clk 0:00:55.4]} 27... Nd4+
{[%clk 0:00:59.2]} 28. Kh5 {[%clk 0:00:55.9]} 28... Nxe2 {[%clk 0:00:54.1]} 29.
Rxe2 {[%clk 0:00:56.3]} 29... Kg7 {[%clk 0:00:46.2]} 30. Bd3 {[%clk 0:00:50.5]}
30... b5 {[%clk 0:00:40.2]} 31. h4 {[%clk 0:00:44.5]} 31... c4 {[%clk 0:00:39]}
32. Bc2 {[%clk 0:00:43.3]} 32... Rbd8 {[%clk 0:00:34.3]} 33. g4 {[%clk 0:00:40]}
33... Bc8 {[%clk 0:00:34.1]} 34. g5 {[%clk 0:00:34.9]} 34... Rxd5 {[%clk
0:00:33.2]} 35. Nd4 {[%clk 0:00:32.2]} 35... Bd7 {[%clk 0:00:21.4]} 36. Nf3
{[%clk 0:00:22.1]} 36... h6 {[%clk 0:00:20.2]} 37. Rg2 {[%clk 0:00:18.1]} 37...
hxg5 {[%clk 0:00:19.4]} 38. Nxg5 {[%clk 0:00:17.3]} 38... Bxg5 {[%clk
0:00:18.3]} 39. hxg5 {[%clk 0:00:17.8]} 39... Rh8+ {[%clk 0:00:17.5]} 0-1

[Event "*** Titled Tuesday Blitz"]
[Site "Chess.com"]
[Date "2020.04.07"]
[Round "7"]
[White "attack2mateU"]
[Black "malandragem"]
[Result "1-0"]
[WhiteElo "2671"]
[BlackElo "2485"]
[TimeControl "180+1"]
[EndTime "14:18:44 PDT"]
[Termination "attack2mateU won on time"]

1. e4 {[%clk 0:03:00.9]} 1... c5 {[%clk 0:02:54.8]} 2. Nf3 {[%clk 0:03:00.7]}
2... e6 {[%clk 0:02:55.2]} 3. c3 {[%clk 0:02:59.6]} 3... Nf6 {[%clk 0:02:55.1]}
4. e5 {[%clk 0:02:59.1]} 4... Nd5 {[%clk 0:02:55.7]} 5. d4 {[%clk 0:02:59.7]}
5... cxd4 {[%clk 0:02:56.6]} 6. cxd4 {[%clk 0:02:59.7]} 6... b6 {[%clk
0:02:57.2]} 7. Bd3 {[%clk 0:02:55.3]} 7... Bb7 {[%clk 0:02:56.1]} 8. O-O {[%clk
0:02:54.9]} 8... Be7 {[%clk 0:02:50.5]} 9. a3 {[%clk 0:02:51]} 9... O-O {[%clk
0:02:26.1]} 10. Qe2 {[%clk 0:02:50.2]} 10... d6 {[%clk 0:02:21.2]} 11. Qe4
{[%clk 0:02:36.7]} 11... g6 {[%clk 0:02:21.4]} 12. Bh6 {[%clk 0:02:36.5]} 12...
Re8 {[%clk 0:02:18.1]} 13. Nc3 {[%clk 0:02:22.2]} 13... Nc6 {[%clk 0:02:09.7]}
14. Nxd5 {[%clk 0:02:18.4]} 14... exd5 {[%clk 0:02:10.6]} 15. Qf4 {[%clk
0:02:13.9]} 15... dxe5 {[%clk 0:01:43.6]} 16. dxe5 {[%clk 0:02:02.1]} 16... Bf8
{[%clk 0:01:28]} 17. Rfe1 {[%clk 0:01:56.1]} 17... Bg7 {[%clk 0:01:09.6]} 18.
Bb5 {[%clk 0:01:27.4]} 18... Rc8 {[%clk 0:01:01]} 19. h4 {[%clk 0:01:24.6]}
19... Qe7 {[%clk 0:00:52.9]} 20. Bxg7 {[%clk 0:01:21.8]} 20... Kxg7 {[%clk
0:00:51.7]} 21. h5 {[%clk 0:01:22.4]} 21... a6 {[%clk 0:00:48.9]} 22. Bxc6
{[%clk 0:01:21.2]} 22... Rxc6 {[%clk 0:00:49.2]} 23. Nd4 {[%clk 0:01:06.7]}
23... Rc4 {[%clk 0:00:43.8]} 24. h6+ {[%clk 0:00:48.6]} 24... Kg8 {[%clk
0:00:40.5]} 25. b3 {[%clk 0:00:47.7]} 25... Rc3 {[%clk 0:00:26]} 26. Rac1 {[%clk
0:00:43.4]} 26... Rec8 {[%clk 0:00:20.4]} 27. Rxc3 {[%clk 0:00:31.6]} 27... Rxc3
{[%clk 0:00:21.3]} 28. e6 {[%clk 0:00:27]} 28... Rc8 {[%clk 0:00:02.4]} 29. Nf5
{[%clk 0:00:18.3]} 29... Qf6 {[%clk 0:00:01.3]} 30. e7 {[%clk 0:00:04]} 1-0

[Event "*** Titled Tuesday Blitz"]
[Site "Chess.com"]
[Date "2020.04.07"]
[Round "7"]
[White "Tormoz"]
[Black "Stormeman100100"]
[Result "1-0"]
[WhiteElo "2674"]
[BlackElo "2487"]
[TimeControl "180+1"]
[EndTime "14:18:47 PDT"]
[Termination "Tormoz won by checkmate"]

1. d4 {[%clk 0:03:00.9]} 1... Nf6 {[%clk 0:02:04.8]} 2. Nf3 {[%clk 0:02:58.3]}
2... d5 {[%clk 0:02:03.7]} 3. c4 {[%clk 0:02:57.7]} 3... c6 {[%clk 0:02:03.1]}
4. g3 {[%clk 0:02:57.2]} 4... Bf5 {[%clk 0:01:59.3]} 5. Nc3 {[%clk 0:02:55.6]}
5... e6 {[%clk 0:01:58.6]} 6. Nh4 {[%clk 0:02:49.9]} 6... Bg4 {[%clk 0:01:52.1]}
7. f3 {[%clk 0:02:49.7]} 7... Bh5 {[%clk 0:01:52]} 8. Qb3 {[%clk 0:02:49.7]}
8... Qb6 {[%clk 0:01:51]} 9. c5 {[%clk 0:02:47.9]} 9... Qxb3 {[%clk 0:01:48.8]}
10. axb3 {[%clk 0:02:47.6]} 10... Na6 {[%clk 0:01:42.5]} 11. g4 {[%clk 0:02:36]}
11... Bg6 {[%clk 0:01:41.8]} 12. Nxg6 {[%clk 0:02:36.1]} 12... hxg6 {[%clk
0:01:42.7]} 13. Bf4 {[%clk 0:02:36.4]} 13... Nb4 {[%clk 0:01:36.6]} 14. Ra4
{[%clk 0:02:32.7]} 14... a5 {[%clk 0:01:20.1]} 15. Kd2 {[%clk 0:02:31.5]} 15...
Kd7 {[%clk 0:01:17.8]} 16. e3 {[%clk 0:02:29.1]} 16... Be7 {[%clk 0:01:17.2]}
17. Be2 {[%clk 0:02:26.4]} 17... Bd8 {[%clk 0:01:17.3]} 18. Rha1 {[%clk
0:02:23.5]} 18... Bc7 {[%clk 0:01:14]} 19. Bxc7 {[%clk 0:02:22.5]} 19... Kxc7
{[%clk 0:01:14.9]} 20. Rxa5 {[%clk 0:02:03.5]} 20... Rxa5 {[%clk 0:01:13.7]} 21.
Rxa5 {[%clk 0:02:04.4]} 21... Rxh2 {[%clk 0:01:13.4]} 22. Ra8 {[%clk 0:02:03.4]}
22... e5 {[%clk 0:00:52.4]} 23. Rf8 {[%clk 0:02:00.5]} 23... exd4 {[%clk
0:00:44.8]} 24. exd4 {[%clk 0:01:58]} 24... Nd7 {[%clk 0:00:25.2]} 25. Rxf7
{[%clk 0:01:57.5]} 25... g5 {[%clk 0:00:23.4]} 26. Rxg7 {[%clk 0:01:51.5]} 26...
Rh1 {[%clk 0:00:21.4]} 27. Rxg5 {[%clk 0:01:46.8]} 27... b6 {[%clk 0:00:21.5]}
28. cxb6+ {[%clk 0:01:43.8]} 28... Kxb6 {[%clk 0:00:21.8]} 29. Rg7 {[%clk
0:01:36.9]} 29... Kc7 {[%clk 0:00:15]} 30. g5 {[%clk 0:01:29.7]} 30... Kd6
{[%clk 0:00:15.2]} 31. f4 {[%clk 0:01:29.6]} 31... c5 {[%clk 0:00:15.1]} 32.
Nb5+ {[%clk 0:00:58.5]} 32... Kc6 {[%clk 0:00:11]} 33. Na7+ {[%clk 0:00:58.5]}
33... Kd6 {[%clk 0:00:07.9]} 34. Nc8+ {[%clk 0:00:57.2]} 34... Kc6 {[%clk
0:00:08.1]} 35. Ne7+ {[%clk 0:00:57.2]} 35... Kd6 {[%clk 0:00:07.3]} 36. Nf5+
{[%clk 0:00:57]} 36... Kc6 {[%clk 0:00:06.8]} 37. Bg4 {[%clk 0:00:50.3]} 37...
Rh2+ {[%clk 0:00:06.3]} 38. Kd1 {[%clk 0:00:49.6]} 38... Nd3 {[%clk 0:00:05.9]}
39. Ne7+ {[%clk 0:00:42.9]} 39... Kb7 {[%clk 0:00:05.6]} 40. Bxd7 {[%clk
0:00:39.6]} 40... Nxb2+ {[%clk 0:00:05.7]} 41. Ke1 {[%clk 0:00:39.3]} 41... Nd3+
{[%clk 0:00:05.1]} 42. Kf1 {[%clk 0:00:39.3]} 42... c4 {[%clk 0:00:04.4]} 43.
bxc4 {[%clk 0:00:37.4]} 43... dxc4 {[%clk 0:00:05.3]} 44. Bb5 {[%clk 0:00:34.9]}
44... Nb2 {[%clk 0:00:03.8]} 45. Nd5+ {[%clk 0:00:34.5]} 45... Kc8 {[%clk
0:00:03.1]} 46. Bc6 {[%clk 0:00:34.3]} 46... Kb8 {[%clk 0:00:01.8]} 47. Rg8+
{[%clk 0:00:34]} 47... Ka7 {[%clk 0:00:02.2]} 48. Ra8# {[%clk 0:00:34.9]} 1-0

[Event "*** Titled Tuesday Blitz"]
[Site "Chess.com"]
[Date "2020.04.07"]
[Round "7"]
[White "ChessicallyInclined"]
[Black "Federtiu"]
[Result "1-0"]
[WhiteElo "2550"]
[BlackElo "2675"]
[TimeControl "180+1"]
[EndTime "14:18:47 PDT"]
[Termination "ChessicallyInclined won by resignation"]

1. d4 {[%clk 0:03:00.9]} 1... g6 {[%clk 0:03:00.9]} 2. c4 {[%clk 0:02:59.5]}
2... Bg7 {[%clk 0:03:00.8]} 3. e4 {[%clk 0:02:59.8]} 3... e6 {[%clk 0:03:00.3]}
4. Nc3 {[%clk 0:02:58.8]} 4... Ne7 {[%clk 0:03:00.7]} 5. h4 {[%clk 0:02:55.7]}
5... d5 {[%clk 0:03:00.5]} 6. cxd5 {[%clk 0:02:55.3]} 6... exd5 {[%clk
0:03:01.4]} 7. e5 {[%clk 0:02:55.4]} 7... h5 {[%clk 0:03:01.7]} 8. Bg5 {[%clk
0:02:50.8]} 8... O-O {[%clk 0:02:56.2]} 9. Be2 {[%clk 0:02:45.3]} 9... c5 {[%clk
0:02:50.5]} 10. Nf3 {[%clk 0:02:16.5]} 10... Nbc6 {[%clk 0:02:47.4]} 11. dxc5
{[%clk 0:01:51.7]} 11... Qa5 {[%clk 0:02:38.9]} 12. Kf1 {[%clk 0:01:47.4]} 12...
Qxc5 {[%clk 0:02:35.2]} 13. Rc1 {[%clk 0:01:43.9]} 13... Qa5 {[%clk 0:02:07.2]}
14. Bf6 {[%clk 0:01:27.6]} 14... Be6 {[%clk 0:01:56.6]} 15. Nb5 {[%clk
0:01:07.8]} 15... Rad8 {[%clk 0:01:38.5]} 16. a3 {[%clk 0:00:56.4]} 16... Qb6
{[%clk 0:01:36.8]} 17. Qd2 {[%clk 0:00:51.4]} 17... Bg4 {[%clk 0:01:22.2]} 18.
Nbd4 {[%clk 0:00:39.9]} 18... Nxd4 {[%clk 0:01:18.8]} 19. Qxd4 {[%clk
0:00:39.4]} 19... Bxf3 {[%clk 0:01:18.5]} 20. Qxb6 {[%clk 0:00:36]} 20... Bxe2+
{[%clk 0:01:17.8]} 21. Kxe2 {[%clk 0:00:36.1]} 21... axb6 {[%clk 0:01:16.3]} 22.
Bxe7 {[%clk 0:00:35.9]} 22... Bxe5 {[%clk 0:01:15.6]} 23. Bxf8 {[%clk 0:00:34]}
23... Kxf8 {[%clk 0:01:14.3]} 24. Rc2 {[%clk 0:00:33.8]} 24... Kg7 {[%clk
0:01:05.7]} 25. Kd3 {[%clk 0:00:32.8]} 25... Kf6 {[%clk 0:01:05.6]} 26. b3
{[%clk 0:00:29.1]} 26... Ra8 {[%clk 0:01:05.3]} 27. a4 {[%clk 0:00:29.3]} 27...
Rd8 {[%clk 0:01:00.9]} 28. Rhc1 {[%clk 0:00:27.2]} 28... Kf5 {[%clk 0:00:56.5]}
29. Rc8 {[%clk 0:00:24.6]} 29... Rd7 {[%clk 0:00:56]} 30. g3 {[%clk 0:00:20.6]}
30... Kg4 {[%clk 0:00:54.3]} 31. Re1 {[%clk 0:00:17.3]} 31... Bd6 {[%clk
0:00:47.6]} 32. Ke2 {[%clk 0:00:17.1]} 32... Bb4 {[%clk 0:00:44]} 33. Rd1 {[%clk
0:00:16.1]} 33... Bc5 {[%clk 0:00:40.2]} 34. b4 {[%clk 0:00:15.1]} 34... Be7
{[%clk 0:00:28.9]} 35. Rd4+ {[%clk 0:00:14.2]} 35... Kh3 {[%clk 0:00:28.1]} 36.
Kf3 {[%clk 0:00:11.8]} 36... Rd6 {[%clk 0:00:17.9]} 37. Rc7 {[%clk 0:00:07.1]}
37... Bf6 {[%clk 0:00:09.8]} 38. Rd1 {[%clk 0:00:04.9]} 38... Kh2 {[%clk
0:00:09.2]} 39. Rcc1 {[%clk 0:00:04.5]} 1-0

[Event "*** Titled Tuesday Blitz"]
[Site "Chess.com"]
[Date "2020.04.07"]
[Round "7"]
[White "bazar-wokzal"]
[Black "LilRag"]
[Result "0-1"]
[WhiteElo "2521"]
[BlackElo "2385"]
[TimeControl "180+1"]
[EndTime "14:18:47 PDT"]
[Termination "LilRag won by resignation"]

1. e4 {[%clk 0:03:00.9]} 1... c5 {[%clk 0:02:51.5]} 2. c3 {[%clk 0:03:00.3]}
2... e6 {[%clk 0:02:51.1]} 3. d4 {[%clk 0:02:59.9]} 3... d5 {[%clk 0:02:51.7]}
4. e5 {[%clk 0:02:59.8]} 4... Nc6 {[%clk 0:02:50.5]} 5. Nf3 {[%clk 0:02:59.7]}
5... Nge7 {[%clk 0:02:50.9]} 6. Bd3 {[%clk 0:02:52.6]} 6... Qb6 {[%clk
0:02:49.6]} 7. O-O {[%clk 0:02:49.5]} 7... Bd7 {[%clk 0:02:48.8]} 8. dxc5 {[%clk
0:02:48.5]} 8... Qxc5 {[%clk 0:02:47.6]} 9. Nbd2 {[%clk 0:02:30.7]} 9... Qa5
{[%clk 0:02:39.9]} 10. Nb3 {[%clk 0:02:29.2]} 10... Qc7 {[%clk 0:02:40.2]} 11.
Re1 {[%clk 0:02:27.1]} 11... h6 {[%clk 0:02:36.4]} 12. Bf4 {[%clk 0:02:25.3]}
12... g5 {[%clk 0:02:35.9]} 13. Bg3 {[%clk 0:02:25.3]} 13... Bg7 {[%clk
0:02:36.2]} 14. Qe2 {[%clk 0:02:22.5]} 14... O-O {[%clk 0:02:15.9]} 15. h4
{[%clk 0:02:14]} 15... g4 {[%clk 0:02:10.4]} 16. Nh2 {[%clk 0:02:13.8]} 16... h5
{[%clk 0:02:06.3]} 17. f3 {[%clk 0:02:13.1]} 17... Nf5 {[%clk 0:01:59.6]} 18.
Bxf5 {[%clk 0:02:08.5]} 18... exf5 {[%clk 0:01:58.5]} 19. Nf1 {[%clk 0:02:02.2]}
19... Rae8 {[%clk 0:01:42.5]} 20. f4 {[%clk 0:01:49.6]} 20... f6 {[%clk
0:01:41.4]} 21. Qd3 {[%clk 0:01:37.9]} 21... fxe5 {[%clk 0:01:36.5]} 22. fxe5
{[%clk 0:01:35]} 22... Nxe5 {[%clk 0:01:33.9]} 23. Qxd5+ {[%clk 0:01:29]} 23...
Kh8 {[%clk 0:01:05.2]} 24. Bf2 {[%clk 0:01:22.8]} 24... Bc6 {[%clk 0:01:02.6]}
25. Qc5 {[%clk 0:01:15.7]} 25... b6 {[%clk 0:00:54.5]} 26. Qa3 {[%clk 0:01:06]}
26... Nd3 {[%clk 0:00:33.9]} 27. Rxe8 {[%clk 0:01:03.2]} 27... Rxe8 {[%clk
0:00:32]} 28. Bd4 {[%clk 0:01:02.8]} 28... Qf4 {[%clk 0:00:22.3]} 29. Bxg7+
{[%clk 0:00:56.6]} 29... Kxg7 {[%clk 0:00:22.2]} 30. Qxa7+ {[%clk 0:00:56.4]}
30... Kg8 {[%clk 0:00:18.5]} 31. Qxb6 {[%clk 0:00:56]} 31... Bxg2 {[%clk
0:00:18.6]} 32. Qd4 {[%clk 0:00:35.7]} 32... Be4 {[%clk 0:00:16.7]} 33. Qe3
{[%clk 0:00:30.7]} 33... Qxe3+ {[%clk 0:00:13.7]} 34. Nxe3 {[%clk 0:00:30]}
34... f4 {[%clk 0:00:14.3]} 35. Nc4 {[%clk 0:00:27.7]} 35... f3 {[%clk
0:00:14.7]} 36. Nc1 {[%clk 0:00:19.5]} 36... f2+ {[%clk 0:00:14.1]} 37. Kf1
{[%clk 0:00:19.3]} 37... g3 {[%clk 0:00:14]} 38. Ne3 {[%clk 0:00:16]} 38... Nxc1
{[%clk 0:00:13.1]} 39. Rxc1 {[%clk 0:00:14.9]} 39... Bd3+ {[%clk 0:00:13.8]} 40.
Kg2 {[%clk 0:00:14.8]} 40... Rxe3 {[%clk 0:00:14.4]} 0-1

[Event "*** Titled Tuesday Blitz"]
[Site "Chess.com"]
[Date "2020.04.07"]
[Round "7"]
[White "PotapovaM"]
[Black "VitaliyBernadskiy"]
[Result "0-1"]
[WhiteElo "2541"]
[BlackElo "2729"]
[TimeControl "180+1"]
[EndTime "14:18:48 PDT"]
[Termination "VitaliyBernadskiy won on time"]

1. d4 {[%clk 0:03:00.9]} 1... g6 {[%clk 0:02:57.3]} 2. e4 {[%clk 0:03:00.8]}
2... Bg7 {[%clk 0:02:55.8]} 3. Nc3 {[%clk 0:03:01.4]} 3... d6 {[%clk 0:02:54.4]}
4. Be3 {[%clk 0:03:01.7]} 4... a6 {[%clk 0:02:52.4]} 5. h4 {[%clk 0:03:02]} 5...
h6 {[%clk 0:02:50.8]} 6. f4 {[%clk 0:02:45.2]} 6... h5 {[%clk 0:02:44.5]} 7. e5
{[%clk 0:02:39.2]} 7... Nh6 {[%clk 0:02:39.6]} 8. Nf3 {[%clk 0:02:26.3]} 8...
Bg4 {[%clk 0:02:37.4]} 9. Be2 {[%clk 0:02:23.4]} 9... Nf5 {[%clk 0:02:35.8]} 10.
Bf2 {[%clk 0:02:23.4]} 10... e6 {[%clk 0:02:32.8]} 11. Ng5 {[%clk 0:02:21]}
11... Bxe2 {[%clk 0:02:31.9]} 12. Qxe2 {[%clk 0:02:21.9]} 12... d5 {[%clk
0:02:28.2]} 13. O-O-O {[%clk 0:02:17.5]} 13... Nc6 {[%clk 0:02:26.7]} 14. g4
{[%clk 0:02:13]} 14... hxg4 {[%clk 0:02:26.6]} 15. Qxg4 {[%clk 0:02:13]} 15...
Rh5 {[%clk 0:02:26.3]} 16. Ne2 {[%clk 0:02:11.3]} 16... Nce7 {[%clk 0:02:26.3]}
17. Kb1 {[%clk 0:01:47.9]} 17... Qd7 {[%clk 0:02:26.3]} 18. Rh3 {[%clk
0:01:36.2]} 18... Bf8 {[%clk 0:02:24.6]} 19. Rg1 {[%clk 0:01:30]} 19... Ng8
{[%clk 0:02:22.7]} 20. Qg2 {[%clk 0:01:16.6]} 20... O-O-O {[%clk 0:02:19.9]} 21.
Nc1 {[%clk 0:01:02.2]} 21... Ng7 {[%clk 0:02:12]} 22. Nd3 {[%clk 0:00:54.3]}
22... Rh8 {[%clk 0:02:11.8]} 23. Re3 {[%clk 0:00:45.2]} 23... Nh6 {[%clk
0:02:09]} 24. Ree1 {[%clk 0:00:40.7]} 24... Nhf5 {[%clk 0:02:08.8]} 25. Rh1
{[%clk 0:00:41.2]} 25... Nh5 {[%clk 0:02:08.9]} 26. Qf3 {[%clk 0:00:40.4]} 26...
Kb8 {[%clk 0:02:07.9]} 27. Rc1 {[%clk 0:00:38]} 27... Bh6 {[%clk 0:02:07.6]} 28.
Nc5 {[%clk 0:00:34.8]} 28... Qc6 {[%clk 0:01:35.8]} 29. Nxf7 {[%clk 0:00:34.4]}
29... Rdf8 {[%clk 0:01:35.9]} 30. Nxh8 {[%clk 0:00:31.9]} 30... Rxh8 {[%clk
0:01:36.8]} 31. Be3 {[%clk 0:00:30]} 31... Nxe3 {[%clk 0:01:34]} 32. Qxe3 {[%clk
0:00:29.3]} 32... Bxf4 {[%clk 0:01:34.9]} 33. Qh3 {[%clk 0:00:29]} 33... Bxc1
{[%clk 0:01:35]} 34. Rxc1 {[%clk 0:00:27.6]} 34... Ng7 {[%clk 0:01:35.1]} 35.
Rg1 {[%clk 0:00:26.3]} 35... Nf5 {[%clk 0:01:34.9]} 36. c3 {[%clk 0:00:22]}
36... Rxh4 {[%clk 0:01:33.7]} 37. Qf3 {[%clk 0:00:20.6]} 37... Rh2 {[%clk
0:01:21.8]} 38. Rxg6 {[%clk 0:00:13.1]} 38... Qb5 {[%clk 0:01:21.9]} 39. Rg2
{[%clk 0:00:12.2]} 39... Rh1+ {[%clk 0:01:16.7]} 40. Kc2 {[%clk 0:00:12.3]}
40... b6 {[%clk 0:01:10]} 41. Nxe6 {[%clk 0:00:10.3]} 41... Qa4+ {[%clk
0:01:08.7]} 42. Kd2 {[%clk 0:00:07.9]} 42... Qxa2 {[%clk 0:00:58.8]} 43. Qxf5
{[%clk 0:00:07.7]} 43... Qxb2+ {[%clk 0:00:55.3]} 44. Qc2 {[%clk 0:00:07.4]}
44... Qa1 {[%clk 0:00:56.2]} 45. Rg8+ {[%clk 0:00:06.4]} 45... Ka7 {[%clk
0:00:54.9]} 46. Kd3 {[%clk 0:00:02.1]} 46... Rh3+ {[%clk 0:00:52.4]} 0-1

[Event "*** Titled Tuesday Blitz"]
[Site "Chess.com"]
[Date "2020.04.07"]
[Round "7"]
[White "ahkashefi2800"]
[Black "GMBenjaminFinegold"]
[Result "0-1"]
[WhiteElo "2231"]
[BlackElo "2568"]
[TimeControl "180+1"]
[EndTime "14:18:48 PDT"]
[Termination "GMBenjaminFinegold won on time"]

1. d4 {[%clk 0:02:57.6]} 1... Nf6 {[%clk 0:02:58.6]} 2. Nf3 {[%clk 0:02:55.4]}
2... g6 {[%clk 0:02:57.3]} 3. Bf4 {[%clk 0:02:51.2]} 3... Bg7 {[%clk 0:02:57.4]}
4. e3 {[%clk 0:02:46.1]} 4... d6 {[%clk 0:02:57.7]} 5. Be2 {[%clk 0:02:37.1]}
5... O-O {[%clk 0:02:57.2]} 6. h3 {[%clk 0:02:33]} 6... b6 {[%clk 0:02:57.1]} 7.
O-O {[%clk 0:02:24.2]} 7... Bb7 {[%clk 0:02:56.9]} 8. a4 {[%clk 0:02:08.3]} 8...
a5 {[%clk 0:02:53.1]} 9. c4 {[%clk 0:01:44.9]} 9... Nbd7 {[%clk 0:02:52.1]} 10.
Nc3 {[%clk 0:01:42.6]} 10... Ne4 {[%clk 0:02:50.6]} 11. Nxe4 {[%clk 0:01:29.5]}
11... Bxe4 {[%clk 0:02:51.5]} 12. Nd2 {[%clk 0:01:15.3]} 12... Bb7 {[%clk
0:02:49.8]} 13. Bf3 {[%clk 0:01:14.9]} 13... c6 {[%clk 0:02:48.7]} 14. b3 {[%clk
0:01:12.8]} 14... e5 {[%clk 0:02:47.1]} 15. dxe5 {[%clk 0:01:11.1]} 15... Nxe5
{[%clk 0:02:45.1]} 16. Rb1 {[%clk 0:01:07.4]} 16... Qe7 {[%clk 0:02:37.8]} 17.
Qc2 {[%clk 0:00:57.4]} 17... Rad8 {[%clk 0:02:33.8]} 18. Rfd1 {[%clk 0:00:54.7]}
18... Rfe8 {[%clk 0:02:33.9]} 19. Bxe5 {[%clk 0:00:40.1]} 19... Bxe5 {[%clk
0:02:23.8]} 20. Nf1 {[%clk 0:00:23.3]} 20... d5 {[%clk 0:02:11]} 21. cxd5 {[%clk
0:00:20.5]} 21... cxd5 {[%clk 0:02:11.9]} 22. Rbc1 {[%clk 0:00:20.8]} 22... Bb8
{[%clk 0:02:10.1]} 23. g3 {[%clk 0:00:16.8]} 23... h5 {[%clk 0:01:49.5]} 24. Bg2
{[%clk 0:00:13]} 24... h4 {[%clk 0:01:48.9]} 25. g4 {[%clk 0:00:13.3]} 25... Qe5
{[%clk 0:01:44]} 26. Qc3 {[%clk 0:00:12.5]} 26... Qd6 {[%clk 0:01:36.6]} 27. Qd4
{[%clk 0:00:11.3]} 27... Ba6 {[%clk 0:01:27.7]} 28. g5 {[%clk 0:00:10.4]} 28...
Bxf1 {[%clk 0:01:26.2]} 29. Kxf1 {[%clk 0:00:11.3]} 29... Qh2 {[%clk 0:01:23.3]}
30. Qxh4 {[%clk 0:00:11.4]} 30... Qe5 {[%clk 0:01:13.4]} 31. Rc2 {[%clk
0:00:09.9]} 31... d4 {[%clk 0:01:09.6]} 32. Rxd4 {[%clk 0:00:07.1]} 32... Rxd4
{[%clk 0:01:09.7]} 33. Qxd4 {[%clk 0:00:08]} 33... Qxg5 {[%clk 0:01:09.9]} 34.
Qxb6 {[%clk 0:00:04.9]} 34... Qf5 {[%clk 0:00:57.6]} 35. Rc5 {[%clk 0:00:03.1]}
35... Qb1+ {[%clk 0:00:56.6]} 36. Ke2 {[%clk 0:00:03.4]} 36... Qb2+ {[%clk
0:00:46.9]} 37. Kf1 {[%clk 0:00:03.4]} 37... Be5 {[%clk 0:00:44.2]} 38. Rd5
{[%clk 0:00:03.2]} 38... Qb1+ {[%clk 0:00:40.1]} 39. Ke2 {[%clk 0:00:02.2]}
39... Bc3 {[%clk 0:00:38.4]} 40. Rd1 {[%clk 0:00:02.6]} 40... Qc2+ {[%clk
0:00:37.8]} 41. Kf3 {[%clk 0:00:02.5]} 41... Qxd1+ {[%clk 0:00:37.5]} 42. Kg3
{[%clk 0:00:03.4]} 42... Be5+ {[%clk 0:00:36]} 43. f4 {[%clk 0:00:03.8]} 43...
Bd6 {[%clk 0:00:34.4]} 44. Bf3 {[%clk 0:00:01.9]} 44... Qe1+ {[%clk 0:00:33.9]}
45. Kg4 {[%clk 0:00:01.6]} 45... Qg1+ {[%clk 0:00:32.9]} 0-1